bitfinex/quotes_ETHUSD_20251011
["timestamp","ask_amount","ask_price","bid_price","bid_amount"]
[1760163728853,0.4427,3823.1,3820.2,2.61761466]
[1760163728854,1.92,3823.4,3821.8,0.6336]
[1760163729108,2.61583122,3822.9,3821.5,2.61677351]
[1760163729255,0.7874026,3823.6,3821.6,0.6336]
[1760163729454,0.4427,3823.4,3821.8,0.6336]
[1760163729665,0.4427,3823.4,3821.5,1.92]
[1760163729666,0.4427,3823.4,3821.5,2.61674958]
[1760163729993,2.73745187,3823.9,3821.6,0.6336]
[1760163729994,0.4427,3823.3,3821.6,0.6336]
[1760163730200,0.1304,3823.0,3822.4,0.1304]
[1760163730348,0.4427,3823.0,3819.2,1.92]
[1760163730549,2.61635203,3822.2,3821.2,1.92]
[1760163730749,14.61163372,3823.9,3820.2,2.61766399]
[1760163730750,2.61669266,3821.7,3820.2,2.61766399]
[1760163730967,2.61685467,3821.4,3818.1,1.27253113]
[1760163731254,0.4427,3821.3,3818.7,3.40645053]
[1760163731448,2.83452619,3821.8,3818.8,2.61862365]
[1760163731449,2.61737706,3820.7,3818.8,2.61862365]
[1760163731698,0.4427,3820.6,3816.9,2.61989048]
[1760163731982,1.92,3821.1,3818.8,1.92]
[1760163731983,0.4427,3820.5,3818.8,1.92]
[1760163732188,2.61746422,3820.5,3819.5,2.61808495]
[1760163732352,2.61760585,3820.3,3819.2,2.61830116]
[1760163732553,2.61760585,3820.3,3819.2,0.6336]
[1760163732750,0.4427,3820.6,3815.9,15.0]
[1760163732969,2.61762163,3820.3,3819.0,2.61848163]
[1760163733309,1.92,3820.4,3819.4,2.61814534]
[1760163733487,1.92,3820.4,3818.3,7.85689965]
[1760163733798,2.61762443,3820.3,3817.7,1.92]
[1760163733962,2.61762443,3820.3,3817.6,3.40735001]
[1760163733963,0.4427,3820.5,3818.8,2.61862365]
[1760163734165,0.4427,3821.1,3818.5,1.92]
[1760163734385,2.61753042,3820.4,3818.7,2.5536]
[1760163734592,1.92,3820.7,3818.8,0.6336]
[1760163734797,1.92,3820.7,3818.7,1.92]
[1760163734798,0.4427,3821.0,3819.7,0.6336]
[1760163734999,3.05984081,3821.0,3819.9,2.61781469]
[1760163735306,1.92,3821.1,3819.9,0.6336]
[1760163735488,1.92,3821.2,3819.2,0.6336]
[1760163735665,1.92,3821.3,3820.5,0.6336]
[1760163735870,1.92,3821.3,3820.5,3.25105815]
[1760163736066,0.6606,3821.8,3819.4,1.92]
[1760163736270,1.92,3821.5,3819.9,0.6336]
[1760163736496,2.61749859,3820.5,3819.6,0.6336]
[1760163736666,2.61749859,3820.5,3819.7,0.6336]
[1760163737402,0.2179,3819.8,3817.2,2.61965389]
[1760163737699,0.4427,3819.7,3815.9,2.62058335]
[1760163737896,0.2179,3819.9,3817.1,2.61978989]
[1760163737897,2.61867306,3818.8,3817.1,2.61978989]
[1760163738086,2.6187201,3818.7,3816.4,2.62024233]
[1760163738287,3.06100072,3819.3,3818.0,2.61916352]
[1760163738601,3.06098902,3819.3,3818.0,2.6191663]
[1760163738798,3.06098902,3819.3,3817.6,2.6194139]
[1760163738799,0.4427,3819.3,3817.6,2.6194139]
[1760163739106,0.2179,3819.9,3818.2,2.61897329]
[1760163739107,1.92,3819.5,3818.2,2.61897329]
[1760163739289,1.92,3819.5,3818.5,2.61882356]
[1760163739472,1.92,3819.5,3818.6,2.61875825]
[1760163739667,1.92,3819.5,3817.7,2.6193153]
[1760163739668,0.2179,3819.9,3818.1,0.6336]
[1760163739873,2.61793811,3819.8,3816.7,2.5536]
[1760163740180,2.1379,3819.9,3818.7,3.25228702]
[1760163740181,2.61811386,3819.6,3818.7,3.25228702]
[1760163740385,2.6179503,3819.8,3819.3,0.1304]
[1760163740710,2.1379,3819.9,3819.6,0.1304]
[1760163740886,2.61800664,3819.7,3819.6,0.1304]
[1760163741096,0.4427,3819.8,3816.9,1.92]
[1760163741097,2.61841006,3819.2,3816.9,1.92]
[1760163741301,2.61841006,3819.2,3819.0,0.1304]
[1760163741627,0.4427,3819.1,3816.4,2.62020924]
[1760163741783,2.61885796,3818.5,3816.4,2.62020924]
[1760163742092,2.61885796,3818.5,3817.6,0.6336]
[1760163742287,3.06146941,3818.6,3817.4,2.61958006]
[1760163742488,3.06146941,3818.6,3816.2,2.62040773]
[1760163742489,0.4427,3818.6,3816.2,2.62040773]
[1760163742726,2.61923422,3818.0,3817.0,2.61981812]
[1760163742924,2.61923422,3818.0,3815.8,2.62067327]
[1760163742925,2.83714837,3817.9,3815.8,2.62067327]
[1760163743109,0.4427,3817.8,3814.8,2.6213694]
[1760163743291,2.61944677,3817.6,3815.5,0.00175225]
[1760163743492,2.61944677,3817.6,3813.6,15.002]
[1760163743493,1.92,3817.9,3814.4,0.002]
[1760163743692,0.2179,3818.1,3817.1,2.61977373]
[1760163743902,0.2179,3818.6,3815.8,1.92]
[1760163744176,0.2179,3818.6,3816.2,2.62036178]
[1760163744293,2.61882938,3818.5,3817.2,2.61971467]
[1760163744496,1.92,3818.1,3817.3,0.6336]
[1760163744696,1.92,3818.3,3817.4,2.61956123]
[1760163744896,1.92,3818.1,3817.3,2.61964846]
[1760163745188,0.4427,3818.4,3817.6,2.61943841]
[1760163745392,0.4427,3818.3,3815.6,0.78839586]
[1760163745593,0.4427,3818.2,3816.4,2.62025915]
[1760163745818,0.2179,3818.6,3816.7,0.6336]
[1760163746020,0.4427,3818.5,3817.4,2.61952432]
[1760163746221,0.2179,3818.6,3816.4,0.6336]
[1760163746413,2.61912355,3818.1,3817.2,0.6336]
[1760163746615,2.61912355,3818.1,3816.5,0.6336]
[1760163746811,0.2179,3818.6,3816.0,1.92]
[1760163746812,0.4427,3818.0,3816.0,2.62047747]
[1760163747127,2.61904309,3818.2,3817.3,0.6336]
[1760163747312,0.4427,3818.4,3817.5,2.61951306]
[1760163747511,0.4427,3818.4,3813.4,2.27813522]
[1760163747512,3.0616016,3818.4,3817.1,2.61972771]
[1760163747699,1.92,3818.0,3817.2,3.25331529]
[1760163747923,2.6192348,3818.0,3817.2,2.61969065]
[1760163748101,2.61939583,3817.7,3816.7,2.61999663]
[1760163748306,2.61939583,3817.7,3815.4,4.54095717]
[1760163748307,2.61939583,3817.7,3816.5,2.62013789]
[1760163748524,2.61958258,3817.5,3816.5,2.62013789]
[1760163748725,1.92,3817.5,3815.1,2.62113089]
[1760163748931,1.92,3817.2,3816.1,2.62046607]
[1760163749209,2.61994402,3816.9,3815.0,2.62123197]
[1760163749411,2.62006023,3816.8,3815.3,0.00095225]
[1760163749715,2.61938114,3817.7,3816.9,0.6336]
[1760163749929,0.4427,3817.9,3816.9,0.6336]
[1760163750109,0.4427,3817.9,3816.8,0.6336]
[1760163750110,2.61946977,3817.6,3816.8,0.6336]
[1760163750310,2.3627,3817.9,3816.1,2.6204764]
[1760163750625,2.3627,3817.9,3816.0,0.002]
[1760163750626,2.61918478,3818.0,3817.2,0.6336]
[1760163750828,2.61924281,3817.9,3817.2,0.6336]
[1760163751028,2.61924281,3817.9,3817.1,2.61973638]
[1760163751029,1.92,3818.3,3817.3,3.2531994]
[1760163751335,1.92,3818.3,3816.0,0.002]
[1760163751336,2.61939587,3817.7,3816.8,2.61993398]
[1760163751507,2.61945891,3817.6,3817.4,0.1304]
[1760163751713,0.4427,3817.9,3817.4,0.1304]
[1760163751714,2.61951538,3817.5,3817.4,0.1304]
[1760163751911,3.06221538,3817.5,3816.3,2.62033808]
[1760163752231,0.4427,3817.5,3815.7,1.92]
[1760163752435,0.4427,3817.5,3816.0,1.922]
[1760163752752,2.61972032,3817.3,3816.4,2.62026854]
[1760163752946,3.06221633,3817.5,3816.4,2.62026854]
[1760163752947,2.61976884,3817.2,3816.5,1.92]
[1760163753251,13.81674894,3817.7,3816.0,0.002]
[1760163753454,2.61991741,3817.0,3816.0,1.922]
[1760163753623,3.06242306,3817.2,3816.4,0.6336]
[1760163753818,13.81674894,3817.7,3816.2,1.92]
[1760163754018,0.4427,3817.1,3816.0,0.002]
[1760163754222,2.61992148,3817.0,3816.0,1.922]
[1760163754458,2.62000881,3816.8,3816.0,2.62254071]
[1760163754633,2.61974644,3817.2,3816.0,0.002]
[1760163754827,2.61958401,3817.4,3816.5,1.92]
[1760163755155,3.06221923,3817.5,3816.5,1.92]
[1760163755333,2.6198597,3817.0,3816.3,2.5536]
[1760163755766,2.61970615,3817.3,3816.2,2.6203698]
[1760163755767,2.61970799,3817.3,3816.2,0.6336]
[1760163755988,3.06225084,3817.5,3816.2,0.6336]
[1760163755989,0.4427,3817.5,3816.2,0.6336]
[1760163756161,2.61972127,3817.2,3816.5,2.5536]
[1760163756476,0.4427,3817.5,3816.5,2.5536]
[1760163756777,2.61981563,3817.1,3816.5,2.5536]
[1760163757084,2.61981563,3817.1,3816.5,0.6336]
[1760163757258,13.81674894,3817.7,3816.5,0.6336]
[1760163757566,2.61966668,3817.3,3816.5,2.5536]
[1760163757769,2.61966668,3817.3,3816.4,0.6336]
[1760163757930,3.06221372,3817.6,3816.4,0.6336]
[1760163758136,2.61966629,3817.3,3816.6,2.5536]
[1760163758771,2.61951963,3817.5,3816.0,0.002]
[1760163758772,2.61974769,3817.2,3816.4,5.17382792]
[1760163758968,2.61980537,3817.1,3816.3,2.62032201]
[1760163759134,0.4427,3817.6,3816.1,0.6336]
[1760163759343,2.61991528,3817.0,3816.3,0.6336]
[1760163759565,2.61993374,3816.9,3816.3,0.6336]
[1760163759863,2.61993374,3816.9,3816.2,0.6336]
[1760163760035,2.62000397,3816.8,3816.2,0.6336]
[1760163760236,2.61994048,3816.9,3816.2,0.6336]
[1760163760539,3.06078299,3817.2,3816.3,0.6336]
[1760163760733,2.61982656,3817.1,3816.3,2.62028655]
[1760163760933,0.441,3817.6,3816.2,0.6336]
[1760163761132,0.441,3817.6,3816.1,0.6336]
[1760163761333,2.61966947,3817.3,3816.6,1.92]
[1760163761535,2.61966947,3817.3,3816.3,2.62033623]
[1760163761536,2.61979451,3817.1,3816.3,2.6203364]
[1760163761734,2.6204764,3816.1,3816.0,0.002]
[1760163761936,13.81674894,3816.4,3816.0,0.002]
[1760163761937,1.22993907,3817.0,3816.0,0.002]
[1760163762169,0.1304,3816.4,3816.0,0.002]
[1760163762735,2.62033957,3816.3,3816.0,0.002]
[1760163763154,0.441,3816.4,3816.1,0.1304]
[1760163763783,1.92,3816.3,3816.1,0.1304]
[1760163763972,0.1304,3816.8,3816.1,0.1304]
[1760163763973,1.92,3816.5,3816.1,0.1304]
[1760163764180,1.92,3816.5,3816.0,0.002]
[1760163764181,2.62038811,3816.3,3816.0,0.002]
[1760163764569,0.441,3816.2,3816.0,0.002]
[1760163764766,0.1304,3816.5,3816.0,0.002]
[1760163764960,1.92,3816.2,3816.0,0.002]
[1760163765456,2.6204184,3816.2,3816.0,0.002]
[1760163765674,0.1304,3816.5,3816.0,0.002]
[1760163766285,0.441,3816.8,3816.0,0.002]
[1760163766493,3.19140687,3816.8,3816.1,0.1304]
[1760163766709,3.19141907,3816.8,3816.1,0.1304]
[1760163766997,0.441,3817.3,3816.0,0.002]
[1760163767196,0.1304,3817.5,3816.7,0.1304]
[1760163767401,13.81674894,3818.2,3816.3,0.6336]
[1760163767402,2.61926136,3817.9,3816.3,0.6336]
[1760163767698,0.41091822,3818.3,3817.3,2.61963868]
[1760163767859,0.41091822,3818.3,3816.7,0.6336]
[1760163768056,0.441,3818.5,3816.7,0.6336]
[1760163768277,0.441,3818.5,3817.3,2.61958818]
[1760163768480,1.92,3818.3,3817.4,2.61954416]
[1760163768686,0.441,3818.5,3817.4,2.61954416]
[1760163768882,1.92,3818.1,3817.0,0.6336]
[1760163769067,2.61896243,3818.4,3817.1,3.2533503]
[1760163769266,2.61897381,3818.3,3817.4,2.6195447]
[1760163769492,1.92,3818.1,3817.3,0.6336]
[1760163769685,1.92,3818.1,3817.3,3.25321288]
[1760163769862,1.92,3818.0,3815.5,2.62087709]
[1760163770184,2.61924094,3817.9,3816.7,2.62000114]
[1760163770390,2.61924094,3817.9,3816.8,2.61998736]
[1760163770391,2.3541,3817.8,3816.8,2.61998736]
[1760163770593,2.3541,3817.8,3816.0,2.62248848]
[1760163770594,2.61998356,3816.9,3816.0,0.002]
[1760163770888,0.4341,3817.8,3816.0,0.002]
[1760163771085,0.4341,3816.9,3816.0,0.002]
[1760163771284,2.62023932,3816.5,3816.0,0.002]
[1760163771703,0.4341,3816.4,3816.0,0.002]
[1760163771908,2.6204764,3816.1,3816.0,0.002]
[1760163772264,3.0545764,3816.1,3816.0,0.002]
[1760163772970,4.9745764,3816.1,3816.0,0.002]
[1760163773370,2.3541,3816.1,3816.0,0.002]
[1760163773571,4.5404764,3816.1,3816.0,0.002]
[1760163774496,4.9745764,3816.1,3816.0,0.002]
[1760163774695,2.3541,3816.1,3816.0,0.002]
[1760163774998,1.92,3816.1,3816.0,0.002]
[1760163776565,2.3541,3816.1,3816.0,0.002]
[1760163777069,1.92,3816.1,3816.0,0.002]
[1760163777265,4.9745764,3816.1,3816.0,0.002]
[1760163777503,4.9745764,3816.1,3816.0,0.1324]
[1760163778379,4.9745764,3816.1,3814.5,2.62157517]
[1760163778380,2.5536,3816.0,3812.7,2.27813522]
[1760163778585,4.77067556,3814.5,3813.5,0.1304]
[1760163778804,2.1491,3814.5,3813.9,0.1304]
[1760163779006,5.20477556,3814.5,3813.9,0.1304]
[1760163779182,2.62191924,3814.0,3813.9,0.1304]
[1760163779378,2.62164429,3814.4,3813.2,0.002]
[1760163779583,2.62212549,3813.7,3813.6,0.1324]
[1760163779780,0.4341,3813.9,3813.6,0.1324]
[1760163780287,2.62212549,3813.7,3813.6,0.1324]
[1760163780605,3.05622549,3813.7,3813.6,0.1324]
[1760163780797,3.05622549,3813.7,3813.6,0.002]
[1760163781003,3.18662549,3813.7,3813.6,0.002]
[1760163781198,1.92,3814.2,3813.6,0.002]
[1760163781386,2.62211848,3813.8,3813.6,0.002]
[1760163781581,2.62205326,3813.9,3813.6,0.002]
[1760163781910,0.4341,3813.7,3813.6,0.002]
[1760163782209,3.05622549,3813.7,3813.6,0.002]
[1760163782397,0.4341,3813.7,3813.6,0.002]
[1760163782979,4.54201569,3813.9,3813.6,0.002]
[1760163783184,0.5645,3814.1,3813.6,0.002]
[1760163783409,0.4341,3813.9,3813.6,0.002]
[1760163783602,0.1304,3814.1,3813.6,0.002]
[1760163783799,1.92,3813.9,3813.6,0.002]
[1760163783988,0.5645,3814.1,3813.6,0.002]
[1760163784302,0.2291,3814.5,3813.6,0.002]
[1760163784303,1.92,3814.4,3813.9,0.1304]
[1760163784584,0.1304,3814.5,3813.9,0.1304]
[1760163784990,1.92,3814.6,3813.8,2.62205177]
[1760163785191,1.92,3814.6,3813.6,2.62418594]
[1760163785192,1.92,3814.6,3814.2,0.1304]
[1760163785398,2.62151036,3814.6,3814.2,0.1304]
[1760163785586,1.92,3814.6,3814.2,0.1304]
[1760163785787,2.2795,3814.9,3814.0,0.1304]
[1760163785788,2.62188674,3814.1,3814.0,0.1304]
[1760163786011,0.4341,3814.1,3814.0,0.1304]
[1760163786211,1.92,3814.4,3814.0,0.1304]
[1760163786412,1.92,3814.3,3814.0,0.1304]
[1760163786737,0.5645,3814.6,3814.0,0.1304]
[1760163786738,0.1304,3814.6,3814.0,0.1304]
[1760163787030,0.4351,3818.3,3814.5,2.5536]
[1760163787323,0.4351,3818.3,3816.4,3.25384917]
[1760163787486,2.61943741,3817.7,3816.6,2.62007215]
[1760163787695,2.84841377,3817.8,3816.7,0.6336]
[1760163787913,0.2291,3817.8,3817.0,2.61985699]
[1760163788425,0.001,3818.3,3816.3,0.6336]
[1760163788589,1.921,3818.3,3816.7,0.6336]
[1760163788787,1.921,3818.3,3817.5,2.61950173]
[1760163788788,0.001,3818.3,3817.5,2.61950173]
[1760163789499,0.001,3818.3,3817.3,2.61964558]
[1760163789693,0.001,3818.3,3817.5,2.6195073]
[1760163790217,0.001,3818.3,3816.8,0.004]
[1760163790386,0.001,3818.3,3817.6,2.61938761]
[1760163790716,0.001,3818.3,3817.7,2.61936939]
[1760163791014,0.001,3818.3,3818.0,2.61917183]
[1760163791217,0.001,3818.3,3817.6,0.6336]
[1760163791518,0.001,3818.3,3817.9,2.61923926]
[1760163791695,0.001,3818.3,3817.8,2.61930382]
[1760163792292,0.001,3818.3,3817.9,2.61924062]
[1760163792537,0.001,3818.3,3817.8,0.6336]
[1760163792898,0.4722,3818.2,3817.0,2.61983634]
[1760163793115,0.4722,3818.2,3816.5,0.004]
[1760163793116,3.09124024,3818.2,3816.5,0.004]
[1760163793304,3.09124024,3818.2,3817.3,2.61964805]
[1760163793514,0.4722,3818.2,3817.3,2.61964805]
[1760163793895,0.4722,3818.2,3817.4,2.61956744]
[1760163794494,3.09127213,3818.2,3817.3,2.61965171]
[1760163794695,0.4722,3818.2,3817.4,2.61955947]
[1760163794924,3.09125259,3818.2,3817.4,2.61955947]
[1760163795123,0.4722,3818.2,3817.4,2.61955947]
[1760163795300,0.4722,3818.2,3816.9,0.6336]
[1760163795301,0.001,3818.3,3817.7,0.6336]
[1760163795617,2.61998477,3818.3,3817.3,0.6336]
[1760163795819,0.001,3818.3,3817.5,2.61951233]
[1760163796121,0.001,3818.3,3817.3,0.6336]
[1760163796122,0.001,3818.3,3817.6,2.61942323]
[1760163796311,0.001,3818.3,3817.3,0.6336]
[1760163796623,0.001,3818.3,3818.0,2.61914153]
[1760163797007,0.001,3818.3,3818.2,0.1304]
[1760163798203,3.09216655,3818.3,3818.2,0.1304]
[1760163798619,2.6191592,3818.1,3817.3,2.61964914]
[1760163798926,2.61905084,3818.2,3817.8,0.1304]
[1760163799228,3.09123514,3818.2,3817.8,0.1304]
[1760163799423,2.61910943,3818.1,3817.8,0.1304]
[1760163799626,0.4722,3818.1,3817.8,0.1304]
[1760163800030,3.09131349,3818.1,3817.8,0.1304]
[1760163800627,2.85434094,3817.9,3817.8,0.1304]
[1760163800828,0.2351,3817.9,3817.6,0.1304]
[1760163801123,0.7073,3817.9,3817.6,0.1304]
[1760163801624,3.32655643,3817.9,3817.6,0.1304]
[1760163801817,0.7073,3817.9,3817.6,0.1304]
[1760163802419,4.66949617,3818.2,3817.6,0.1304]
[1760163802628,0.001,3818.3,3817.4,2.61951782]
[1760163802824,2.61908596,3818.2,3817.8,0.1304]
[1760163803017,0.4722,3818.2,3817.8,0.1304]
[1760163803532,3.09124653,3818.2,3817.8,0.1304]
[1760163803730,0.001,3818.3,3817.8,0.1304]
[1760163803731,0.001,3817.9,3817.8,0.1304]
[1760163803935,0.001,3817.9,3817.6,2.61944677]
[1760163804103,0.001,3817.9,3817.8,0.1304]
[1760163805217,0.001,3817.9,3817.8,2.74970955]
[1760163805419,0.001,3817.9,3817.8,0.1304]
[1760163807436,0.001,3817.9,3817.8,3.38330955]
[1760163807931,0.001,3817.9,3817.8,0.764]
[1760163808113,0.001,3817.9,3817.8,0.1304]
[1760163815320,0.001,3817.9,3817.1,0.004]
[1760163815321,2.61954645,3817.5,3815.9,0.004]
[1760163815564,0.7083,3817.9,3815.9,0.004]
[1760163815565,0.4722,3817.4,3815.9,0.6376]
[1760163815713,0.4722,3817.4,3816.6,0.6336]
[1760163816047,0.4722,3817.4,3815.9,0.004]
[1760163816232,0.4722,3817.4,3815.5,2.62087504]
[1760163816233,2.62009325,3816.7,3815.5,2.62087504]
[1760163816534,2.62023244,3816.5,3815.3,2.62102586]
[1760163816734,2.62020175,3816.5,3815.5,2.62082982]
[1760163817235,2.62027531,3816.4,3815.5,2.62082982]
[1760163817444,2.62027531,3816.4,3815.6,2.62080381]
[1760163818013,2.62027531,3816.4,3815.7,0.6336]
[1760163818341,2.62040461,3816.3,3815.0,0.004]
[1760163818559,2.61984699,3817.1,3815.0,0.004]
[1760163818560,2.61962558,3817.4,3815.0,2.62522437]
[1760163818855,1.92,3816.5,3815.8,2.62064833]
[1760163819361,2.6201367,3816.6,3815.8,2.62064833]
[1760163819564,2.62021842,3816.5,3815.5,0.6336]
[1760163819867,2.61979009,3817.1,3814.7,1.92]
[1760163820070,2.62052827,3816.1,3815.3,0.6336]
[1760163820268,2.62055054,3816.0,3815.3,0.6336]
[1760163820471,0.6927,3815.9,3814.9,2.62124841]
[1760163821178,1.92,3817.0,3814.1,2.62382261]
[1760163821179,1.92,3816.4,3815.3,0.6336]
[1760163821388,0.4632,3816.9,3815.9,2.62061244]
[1760163821681,1.92,3817.8,3816.3,2.62030361]
[1760163821887,0.4632,3817.4,3816.2,0.6336]
[1760163822238,2.62005462,3816.8,3816.0,0.6336]
[1760163822463,3.08327891,3816.7,3815.5,2.620868]
[1760163822684,2.62034609,3816.3,3815.6,0.6336]
[1760163822872,0.4632,3816.3,3814.9,0.004]
[1760163823040,2.62053298,3816.1,3815.1,0.6336]
[1760163823244,2.62042911,3816.2,3815.4,2.5536]
[1760163823770,2.62042911,3816.2,3815.4,3.25453454]
[1760163824541,1.92,3816.9,3815.4,0.6336]
[1760163824745,2.62046827,3816.2,3815.4,0.6336]
[1760163824947,3.08354476,3816.3,3815.4,0.6336]
[1760163825146,3.08354476,3816.3,3815.5,2.62087811]
[1760163825366,3.08354476,3816.3,3816.0,0.1304]
[1760163825367,2.62040915,3816.2,3816.0,0.1304]
[1760163825556,2.6204764,3816.1,3816.0,0.1304]
[1760163825745,2.62057589,3816.0,3815.2,0.6336]
[1760163825950,2.62054507,3816.0,3815.8,0.1304]
[1760163826266,0.6927,3815.9,3815.8,0.1304]
[1760163826652,3.31331374,3815.9,3815.8,0.1304]
[1760163827053,2.62084462,3815.6,3814.5,2.62157556]
[1760163827254,2.62084462,3815.6,3814.7,2.62139938]
[1760163827658,2.62084462,3815.6,3814.8,2.62135505]
[1760163827979,0.6927,3815.9,3814.9,2.62126101]
[1760163828175,2.6127,3815.9,3814.9,2.62126101]
[1760163828344,0.6927,3815.9,3814.9,2.62126101]
[1760163828672,2.6209044,3815.5,3814.4,0.6356]
[1760163828979,2.62097466,3815.4,3814.8,0.6336]
[1760163829145,0.4632,3815.3,3814.4,0.002]
[1760163829343,2.62116327,3815.1,3814.4,0.002]
[1760163829546,2.6212481,3815.0,3814.4,0.002]
[1760163829974,2.62133369,3814.9,3814.4,0.002]
[1760163830174,2.62123616,3815.0,3814.4,0.002]
[1760163830473,2.62130497,3814.9,3814.4,0.002]
[1760163830675,0.4581,3814.8,3814.4,0.002]
[1760163831244,1.92,3815.0,3814.4,0.002]
[1760163831245,3.07954583,3814.7,3814.4,0.002]
[1760163831682,0.4581,3814.6,3814.4,0.002]
[1760163831856,2.3781,3814.6,3814.4,0.002]
[1760163832059,0.4581,3814.5,3814.4,0.002]
[1760163832649,1.92,3814.9,3814.4,0.002]
[1760163832993,2.62130689,3814.9,3814.4,0.002]
[1760163833160,0.4581,3814.8,3814.4,0.002]
[1760163833544,3.07947011,3814.8,3814.4,0.002]
[1760163833743,0.4581,3814.7,3814.4,0.002]
[1760163834170,0.4581,3815.5,3814.4,0.002]
[1760163834372,0.6876,3815.9,3814.6,0.6336]
[1760163834654,2.6076,3815.9,3814.6,0.6336]
[1760163834859,1.92,3815.6,3814.9,2.6212894]
[1760163835360,2.62082989,3815.6,3814.9,2.6212894]
[1760163835674,2.62092555,3815.5,3814.6,0.6336]
[1760163836065,0.2295,3815.9,3814.4,0.002]
[1760163836066,1.92,3815.1,3814.4,0.002]
[1760163836374,2.62127412,3815.0,3814.4,0.002]
[1760163836576,0.4581,3815.1,3814.4,0.002]
[1760163836762,3.0793182,3815.1,3814.4,0.002]
[1760163836964,0.4581,3815.1,3814.4,0.002]
[1760163837150,2.3781,3815.1,3814.7,0.1304]
[1760163837351,2.62130169,3814.9,3814.7,0.1304]
[1760163837552,2.62150965,3814.6,3814.4,0.002]
[1760163837752,2.62157556,3814.5,3814.4,0.1324]
[1760163837953,3.07967556,3814.5,3814.4,0.1324]
[1760163838279,0.1304,3814.7,3814.4,0.002]
[1760163838446,0.4581,3814.5,3814.4,0.002]
[1760163839252,4.99967556,3814.5,3814.4,0.002]
[1760163839679,2.3781,3814.5,3814.4,0.002]
[1760163840068,1.92,3814.5,3814.4,0.002]
[1760163840260,2.3781,3814.5,3814.4,0.002]
[1760163840660,1.92,3814.5,3814.4,0.002]
[1760163841057,1.92,3814.5,3814.4,2.62364429]
[1760163841257,1.92,3814.5,3814.4,0.002]
[1760163841478,1.92,3814.5,3814.4,2.62364429]
[1760163842289,1.92,3814.5,3814.4,0.002]
[1760163843283,0.001,3814.8,3814.4,0.002]
[1760163843495,0.001,3814.8,3814.6,2.62144595]
[1760163843699,0.001,3814.8,3814.7,0.1304]
[1760163844193,0.001,3814.8,3814.7,3.38543812]
[1760163844490,0.001,3815.2,3814.7,3.38543812]
[1760163844491,0.001,3815.2,3815.1,3.25476327]
[1760163844800,0.001,3815.2,3815.1,3.38516327]
[1760163844989,0.001,3815.2,3815.1,3.38816327]
[1760163845475,0.001,3815.2,3815.1,3.25476327]
[1760163846870,0.001,3815.2,3815.1,2.62116327]
[1760163847076,0.001,3815.2,3814.4,0.002]
[1760163847400,0.66251298,3815.8,3814.4,0.002]
[1760163847600,1.92,3816.4,3814.4,0.002]
[1760163847601,0.4581,3816.3,3814.6,2.62150684]
[1760163847773,0.2365,3815.9,3815.1,0.6336]
[1760163847964,0.6709,3815.9,3815.3,2.62101914]
[1760163848302,2.62032892,3816.4,3814.4,2.62358822]
[1760163848303,0.4344,3816.4,3814.8,0.0149]
[1760163848597,0.4344,3816.4,3815.7,2.62074375]
[1760163848795,1.92,3816.3,3815.6,2.62081579]
[1760163848999,1.92,3816.5,3815.2,2.62103385]
[1760163849187,0.4344,3816.2,3815.2,2.62103385]
[1760163849411,0.4344,3816.2,3815.0,0.6336]
[1760163849788,0.4344,3816.2,3815.6,2.62076215]
[1760163850287,0.4344,3816.7,3815.4,2.62090236]
[1760163850483,2.6201331,3816.6,3815.7,2.62069639]
[1760163850708,1.92,3816.5,3815.8,2.62064821]
[1760163850884,2.6202117,3816.5,3815.6,2.62081979]
[1760163851083,2.6202117,3816.5,3815.1,2.63605931]
[1760163851084,0.4344,3816.7,3815.2,0.6336]
[1760163851289,0.4344,3816.7,3815.7,2.62068308]
[1760163851509,1.92,3816.6,3815.7,2.62074383]
[1760163851704,1.92,3816.6,3815.1,2.63605931]
[1760163851705,4.5401505,3816.6,3815.6,2.62080932]
[1760163851918,1.92,3816.6,3816.0,2.62054397]
[1760163852320,1.92,3816.6,3815.7,2.62074255]
[1760163852618,0.4344,3816.7,3815.8,0.6336]
[1760163852812,2.3544,3816.7,3815.8,0.6336]
[1760163853014,2.3544,3816.7,3815.4,0.0149]
[1760163853015,1.92,3816.9,3816.3,2.62028265]
[1760163853225,2.61984608,3817.1,3816.3,2.62028265]
[1760163853226,1.92,3817.0,3816.3,2.62028265]
[1760163853535,1.92,3817.1,3816.4,2.62026368]
[1760163853704,1.92,3817.1,3816.4,2.62025516]
[1760163854104,2.3544,3817.2,3816.5,2.62019189]
[1760163854727,3.05413353,3817.2,3816.4,2.62025345]
[1760163855411,0.1304,3817.4,3816.8,0.1304]
[1760163855798,0.4344,3817.6,3816.7,2.62002492]
[1760163856005,1.92,3817.5,3817.1,0.1304]
[1760163856203,0.4344,3817.4,3817.1,0.1304]
[1760163856615,1.92,3817.5,3817.1,0.1304]
[1760163856828,0.2361,3817.9,3817.3,0.1304]
[1760163856829,0.001,3817.9,3817.3,0.1304]
[1760163857056,4.54029446,3817.9,3817.6,0.1304]
[1760163857220,0.001,3817.9,3817.6,0.1304]
[1760163857753,3.290216,3817.8,3817.6,0.1304]
[1760163857922,0.4344,3817.7,3817.6,0.1304]
[1760163858822,0.001,3817.8,3817.6,0.1304]
[1760163859424,0.4354,3817.8,3817.6,0.1304]
[1760163859651,1.92,3817.6,3814.9,2.27813522]
[1760163859815,0.4344,3817.5,3815.3,0.0149]
[1760163860015,1.92,3817.4,3815.9,2.62055717]
[1760163860356,2.62015704,3816.6,3815.3,0.0149]
[1760163860552,0.4344,3817.3,3816.1,2.62047397]
[1760163860755,0.001,3817.8,3815.8,2.62063135]
[1760163860756,2.62013587,3816.6,3815.8,2.62063135]